Cogmind - Beta 13 @@@ ROGUE MODE // 2024.04.08 @ 22:19:57 Player: SnowyImp Result: Destroyed by Y-64 Sentinel with KE Penetrator Performance ------------- Evolutions (3) 1500 Regions Visited (9) 1800 Robots Destroyed (44) 220 Value Destroyed (1385) 1385 Prototype IDs (6) 120 Alien Tech Used (0) 0 Bonus (314) 314 TOTAL SCORE: 5339 Bonus ------- Follower Combat Kills 14 Aligned with FarCom 300 Cogmind --------- Core Integrity 0/700 Matter 270/300 Energy 98/100 System Corruption 9% Temperature Cool (0) Movement Core (50) Location -7/Lower Caves Parts ------- > --- POWER (1) -------- (None) > --- PROPULSION (4) --- (None) > --- UTILITY (6) ------ Advanced Weight Redist. System Improved Salvage Targeting Computer Advanced Targeting Computer Makeshift System Shield > --- WEAPON (2) ------- (None) > --- INVENTORY (5) ---- Improved Titanium Leg Hacking Suite Particle Cannon Power Maul Peak State ------------ > --- POWER ------------ Cooled Ion Engine > --- PROPULSION ------- Flying Fortress v7 > --- UTILITY ---------- Improved Heat Sink Advanced Visual Processing Unit Improved Terrain Scanner Advanced Targeting Computer Advanced ECM Suite Advanced ECM Suite > --- WEAPON ----------- Heavy Laser Mini Assault Cannon > --- INVENTORY -------- Xenon Bombardment Thruster Advanced Weight Redist. System Advanced ECM Suite Improved Medium Armor Plating Cooled Pulse Rifle [Rating: 66] Favorites ----------- Power Cooled Ion Engine Engine Cooled Ion Engine Power Core Light Nuclear Core Propulsion Medium Treads Treads Medium Treads Leg Aluminum Leg Hover Unit Improved Hover Unit Flight Unit Flight Unit Utility Advanced ECM Suite Device Advanced ECM Suite Processor Advanced Targeting Computer Hackware Makeshift System Shield Weapon Precision Assault Rifle Energy Gun Heavy Laser Ballistic Gun Precision Assault Rifle Ballistic Cannon Mini Assault Cannon Impact Weapon Power Maul Slashing Weapon Chainsword Build | -11 -10 -10 -9 -9 -9 -8 -8 -7 -7 ------- Run | Yrd Mat Min Mat Min Exi Min Mat Fac Low Slots Evolved 6 | . . . 2 . . . 2 2 . Power . | . . . . . . . . . . Propulsion 2 | . . . 2 . . . . . . Utility 4 | . . . . . . . 2 2 . Weapon . | . . . . . . . . . . Parts Attached 73 | 4 2 . 8 3 1 . 6 39 10 Power 6 | 1 . . 3 . . . 1 1 . Engine 5 | 1 . . 3 . . . 1 . . Core 1 | . . . . . . . . 1 . Reactor . | . . . . . . . . . . Propulsion 18 | 2 2 . 2 1 1 . 1 7 2 Treads 6 | . . . . . . . . 6 . Leg 3 | 2 . . . . . . . . 1 Wheel . | . . . . . . . . . . Hover 1 | . . . . . . . . 1 . Flight 8 | . 2 . 2 1 1 . 1 . 1 Utility 15 | . . . . 1 . . 4 7 3 Device 11 | . . . . 1 . . 2 7 1 Storage . | . . . . . . . . . . Processor 3 | . . . . . . . 2 . 1 Hackware 1 | . . . . . . . . . 1 Protection . | . . . . . . . . . . Artifact . | . . . . . . . . . . Weapon 34 | 1 . . 3 1 . . . 24 5 Energy Gun 14 | 1 . . 3 1 . . . 6 3 Energy Cannon . | . . . . . . . . . . Ballistic Gun 9 | . . . . . . . . 8 1 Ballistic Cannon 1 | . . . . . . . . 1 . Launcher . | . . . . . . . . . . Special Weapon . | . . . . . . . . . . Impact Weapon 5 | . . . . . . . . 5 . Slashing Weapon 5 | . . . . . . . . 4 1 Piercing Weapon . | . . . . . . . . . . Special Melee Weapon . | . . . . . . . . . . Unidentified Prototypes 6 | . . . 2 . 1 . . 3 . Parts Lost 17 | . . . . 1 . . . 3 13 Power 2 | . . . . . . . . 1 1 Propulsion 6 | . . . . 1 . . . 1 4 Utility 5 | . . . . . . . . . 5 Weapon 4 | . . . . . . . . 1 3 Highest Loss Streak 7 | . . . . 1 . . . 1 7 To Critical Strikes . | . . . . . . . . . . Average Slot Usage (%) 74 | . 56 57 67 76 53 44 51 84 69 Engine 5 | . 14 14 11 11 11 11 9 5 . Core 2 | . . . . . . . . . 6 Treads 10 | . . . . . . . . 14 11 Leg 1 | . 24 . . . . . . . . Flight 5 | . 2 28 44 43 20 11 9 2 . Device 27 | . . . . . . . 11 36 31 Processor 6 | . . . . . . . 4 8 7 Energy Gun 6 | . 14 14 12 22 22 22 18 4 1 Ballistic Gun 3 | . . . . . . . . 4 5 Impact Weapon 1 | . . . . . . . . 2 2 Naked Turns . | . . . . . . . . . . Heaviest Build 24 | 7 7 7 13 15 15 15 17 24 20 Greatest Support 98 | 20 20 8 16 16 50 50 50 98 20 Greatest Overweight (x) 7 | 1 . . . . . . . 7 6 Average Overweight (x) . | . . . . . . . . . 1 Largest Inventory Capacity 5 | 5 5 5 5 5 5 5 5 5 5 Average Capacity 5 | 5 5 5 5 5 5 5 5 5 5 Most Carried 5 | . 5 5 5 5 5 5 5 5 5 Average Carried 4 | . 2 5 3 4 5 5 4 4 4 Final Capacity 5 | 5 5 5 5 5 5 5 5 5 5 Final Carried 5 | . 5 5 5 5 5 5 5 5 4 Class Distribution -------------------- 46% | Mutant 19% | Assassin 9% | Scout 8% | Infiltrator-Scout 6% | Scavenger-Sprinter 5% | Skirmisher 3% | Ninja Dominant Class ---------------- Mutant | -10/Materials Mutant | -10/Mines Scavenger-Sprinter | -9/Materials Scavenger-Sprinter | -9/Mines Mutant | -9/Exiles Mutant | -8/Mines Mutant | -8/Materials Assassin | -7/Factory Mutant | -7/Lower Caves Resources | -11 -10 -10 -9 -9 -9 -8 -8 -7 -7 ----------- Run | Yrd Mat Min Mat Min Exi Min Mat Fac Low Matter Collected 1019 | 191 69 . . 85 . 30 27 486 131 Remotely . | . . . . . . . . . . Salvage Created 1543 | . 140 . . 183 . 53 118 849 200 Parts 57 | . 13 . . 10 . 2 11 19 2 Haulers Intercepted . | . . . . . . . . . . Recyclers Shooed 1 | . . . . 1 . . . . . Parts Field Recycled . | . . . . . . . . . . Retrieved Matter . | . . . . . . . . . . Parts Self-Destructed 9 | . . . . . . . . . 9 Prevented . | . . . . . . . . . . Kills | -11 -10 -10 -9 -9 -9 -8 -8 -7 -7 ------- Run | Yrd Mat Min Mat Min Exi Min Mat Fac Low Combat Hostiles Destroyed 36 | . 7 . . 2 . 1 4 16 6 Melee 7 | . . . . . . . . 3 4 Guns 26 | . 7 . . 2 . 1 4 10 2 Classes Destroyed 11 | . 2 . . 2 . 1 2 2 2 Worker 1 | . . . . . . . 1 . . Builder 1 | . . . . 1 . . . . . Recycler 2 | . . . . 2 . . . . . Watcher 4 | . . . . . . . . 4 . Swarmer 17 | . 6 . . 2 . . 3 2 4 Grunt 6 | . 1 . . . . . . 5 . Brawler 1 | . . . . . . . . . 1 Duelist 1 | . . . . . . . . . 1 Sentry 3 | . . . . . . . 1 2 . Hunter 5 | . . . . . . 1 . 4 . Programmer 3 | . . . . . . . . 3 . Best Kill Streak 5 | . 4 . . 5 . 1 4 3 2 Combat Bots Only 4 | . 4 . . 2 . 1 3 3 2 Max Kills in Single Turn 2 | . 1 . . 2 . 1 1 1 1 Gunslinging . | . . . . . . . . . . Exploded . | . . . . . . . . . . Melee 1 | . . . . . . . . 1 1 Uniques/NPCs Destroyed . | . . . . . . . . . . Combat | -11 -10 -10 -9 -9 -9 -8 -8 -7 -7 -------- Run | Yrd Mat Min Mat Min Exi Min Mat Fac Low Hostile Shots Fired 523 | . 35 . . 4 . 8 25 292 159 Missed 198 | . 8 . . 1 . 4 13 115 57 Damage Taken 3807 | . 238 . . 25 . 69 122 1966 1387 Core 831 | . 60 . . . . 32 14 284 441 Absorbed by Shields . | . . . . . . . . . . Core Remaining (%) 91 | 100 . 76 . . . 92 97 . . Volleys Fired 97 | . 26 . . 6 . 4 7 44 10 Largest 2 | . 1 . . 2 . 2 2 2 2 Hottest 138 | . 50 . . 106 . 125 125 138 100 Shots Fired 153 | . 26 . . 12 . 8 14 80 13 Gun 153 | . 26 . . 12 . 8 14 80 13 Cannon . | . . . . . . . . . . Launcher . | . . . . . . . . . . Special . | . . . . . . . . . . Kinetic 20 | . . . . . . . . 17 3 Thermal 133 | . 26 . . 12 . 8 14 63 10 Explosive . | . . . . . . . . . . Electromagnetic . | . . . . . . . . . . Robot Hit Streak 28 | . 8 . . 4 . 5 6 28 11 Robot Miss Streak 11 | . 11 . . 1 . 2 7 3 . Penetration Max . | . . . . . . . . . . Secondary Targets 3 | . . . . . . . 1 2 . Max Gunslinging Chain 1 | . . . . . . . 1 1 . Shots Hit Robots 141 | . 14 . . 8 . 4 7 89 19 Core Hits 53 | . 8 . . 7 . 3 6 22 7 Critical Kills 2 | . . . . . . . . 1 1 Critical Parts Destroyed 8 | . . . . . . . . 6 2 Critical Strikes 17 | . . . . 1 . . . 12 4 Burn 5 | . . . . 1 . . . 3 1 Smash 11 | . . . . . . . . 8 3 Sever 1 | . . . . . . . . 1 . Melee Attacks 59 | . . . . . . . . 42 17 Impact 45 | . . . . . . . . 30 15 Slashing 14 | . . . . . . . . 12 2 Piercing . | . . . . . . . . . . Sneak Attacks . | . . . . . . . . . . Combat Hostiles . | . . . . . . . . . . Follow-up Attacks . | . . . . . . . . . . Damage Inflicted 3623 | . 211 . . 122 . 66 133 2544 547 Guns 2056 | . 211 . . 122 . 66 133 1326 198 Cannons . | . . . . . . . . . . Explosions . | . . . . . . . . . . Melee 1562 | . . . . . . . . 1218 344 Ramming 5 | . . . . . . . . . 5 Kinetic 373 | . . . . . . . . 354 19 Thermal 1683 | . 211 . . 122 . 66 133 972 179 Explosive . | . . . . . . . . . . Electromagnetic . | . . . . . . . . . . Impact 1136 | . . . . . . . . 835 301 Slashing 426 | . . . . . . . . 383 43 Piercing . | . . . . . . . . . . Highest Corruption 9 | . . . . . . . . 3 9 Average Corruption 3 | . . . . . . . . 2 3 Corruption Purged . | . . . . . . . . . . Corruption Blocked . | . . . . . . . . . . Effects 56 | . . . . . . . . 25 31 Message Errors 14 | . . . . . . . . 7 7 Matter Fused 12 | . . . . . . . . 3 9 Heat Flow Errors 7 | . . . . . . . . 4 3 Energy Discharges 10 | . . . . . . . . 5 5 Data Loss (minor) 7 | . . . . . . . . 3 4 Data Loss (major) 3 | . . . . . . . . 2 1 Misfires 3 | . . . . . . . . 1 2 Overload Shots . | . . . . . . . . . . Overflow Damage 445 | . . . . . . . . 353 92 Projectiles . | . . . . . . . . . . Explosions . | . . . . . . . . . . Melee 445 | . . . . . . . . 353 92 Knockbacks 5 | . . . . . . . . 5 . Impact 5 | . . . . . . . . 5 . Kinetic . | . . . . . . . . . . Secondary . | . . . . . . . . . . Self-Inflicted Damage 2 | . . . . . . . . . 2 Shots . | . . . . . . . . . . Rammed 2 | . . . . . . . . 1 1 Targets Rammed 2 | . . . . . . . . 1 1 Kicked . | . . . . . . . . . . Crushed . | . . . . . . . . . . Highest Temperature 294 | . 114 . . 229 . 294 108 215 230 Average Temperature 83 | . 53 . . 110 . 152 49 77 98 Received Heat Transfer 429 | . 24 . . . . . 54 255 96 Siege Activations . | . . . . . . . . . . Robots Corrupted . | . . . . . . . . . . Combat Hostiles . | . . . . . . . . . . Parts Fried 12 | . . . . . . . . 11 1 Impact Corruptions 23 | . . . . . . . . 19 4 Robots Melted . | . . . . . . . . . . Combat Hostiles . | . . . . . . . . . . Parts Melted 8 | . 2 . . . . 1 . 5 . Heat Transferred 3959 | . 629 . . 407 . 148 296 2035 444 Parts Sabotaged . | . . . . . . . . . . Parts Stolen . | . . . . . . . . . . Parts Stripped . | . . . . . . . . . . Power Chain Reactions . | . . . . . . . . . . Alert | -11 -10 -10 -9 -9 -9 -8 -8 -7 -7 ------- Run | Yrd Mat Min Mat Min Exi Min Mat Fac Low Peak Influence 287 | . 231 148 142 165 . 45 239 287 . Initial 108 | . . 90 57 55 . . 17 108 . Average 159 | . 89 94 101 102 . 16 115 189 . Maximum Alert Level 1 | . 1 . . . . . 1 1 . Low Security (%) 66 | 100 78 100 100 100 . 100 89 56 . Level 1 33 | . 21 . . . . . 10 43 . Level 2 . | . . . . . . . . . . Level 3 . | . . . . . . . . . . Level 4 . | . . . . . . . . . . Level 5 . | . . . . . . . . . . High Security . | . . . . . . . . . . Max Security . | . . . . . . . . . . Squads Dispatched 15 | . . . 3 . . . 1 11 . Investigation 8 | . . . 1 . . . 1 6 . Extermination 3 | . . . . . . . . 3 . Reinforcement 4 | . . . 2 . . . . 2 . Assault . | . . . . . . . . . . Garrison . | . . . . . . . . . . Intercept . | . . . . . . . . . . Searches Triggered . | . . . . . . . . . . Construction Impeded . | . . . . . . . . . . Haulers Reinforced . | . . . . . . . . . . Active Scanning Responses . | . . . . . . . . . . Cargo Convoy Interrupts . | . . . . . . . . . . Stealth | -11 -10 -10 -9 -9 -9 -8 -8 -7 -7 --------- Run | Yrd Mat Min Mat Min Exi Min Mat Fac Low Distress Signals 4 | . 1 . 1 . . . 1 1 . Communications Jammed . | . . . . . . . . . . Distress Signals . | . . . . . . . . . . Times Spotted 87 | . 11 . 7 4 . 1 15 32 17 Peak Tracking Total 8 | . 5 . 6 3 . 1 7 6 8 Tactical Retreats 8 | . 2 . . 1 . . 1 2 2 Traps | -11 -10 -10 -9 -9 -9 -8 -8 -7 -7 ------- Run | Yrd Mat Min Mat Min Exi Min Mat Fac Low Traps Triggered 1 | . . . . . . . . . 1 Indirectly . | . . . . . . . . . . Trap Hack Attempts . | . . . . . . . . . . Triggered . | . . . . . . . . . . Disarmed . | . . . . . . . . . . Reprogrammed . | . . . . . . . . . . Reused . | . . . . . . . . . . Traps Extracted . | . . . . . . . . . . Installed . | . . . . . . . . . . Triggered 3 | . . . . . . . . . 3 Machines | -11 -10 -10 -9 -9 -9 -8 -8 -7 -7 ---------- Run | Yrd Mat Min Mat Min Exi Min Mat Fac Low Machines Disabled 2 | . . . . 1 . . . 1 . Max in Single Turn 1 | . . . . 1 . . . 1 . Machines Repaired . | . . . . . . . . . . Machines Dismantled . | . . . . . . . . . . Machines Sabotaged . | . . . . . . . . . . Overloaded Fab Kills . | . . . . . . . . . . Hacking | -11 -10 -10 -9 -9 -9 -8 -8 -7 -7 --------- Run | Yrd Mat Min Mat Min Exi Min Mat Fac Low Machines Accessed 22 | . 3 . 3 1 . . 3 11 1 Terminals 17 | . 3 . 3 . . . 2 9 . Fabricators 1 | . . . . . . . . 1 . Repair Stations . | . . . . . . . . . . Recycling Units . | . . . . . . . . . . Scanalyzers 2 | . . . . . . . 1 1 . Garrison Access . | . . . . . . . . . . Total Hacks 57 | . 7 . 8 1 . . 14 26 1 Successful 27 | . 4 . 3 1 . . 7 11 1 Failed 30 | . 3 . 5 . . . 7 15 . Catastrophic 11 | . . . 2 . . . 1 8 . Database Lockouts . | . . . . . . . . . . Manual 36 | . 7 . 8 . 1 . 5 15 . Terminals 37 | . 7 . 8 . . . 5 17 . Fabricators 4 | . . . . . . . . 4 . Repair Stations . | . . . . . . . . . . Recycling Units . | . . . . . . . . . . Scanalyzers 14 | . . . . . . . 9 5 . Garrison Access . | . . . . . . . . . . Terminal Hacks 8 | . 3 . 1 1 . . . 2 1 Part Schematic 2 | . 2 . . . . . . . . Open Door 2 | . . . . 1 . . . . 1 Branch Access Points 3 | . 1 . 1 . . . . 1 . Terminal Index 1 | . . . . . . . . 1 . Fabricator Hacks 2 | . . . . . . . . 2 . Network Status 1 | . . . . . . . . 1 . Load Schematic 1 | . . . . . . . . 1 . Repair Station Hacks . | . . . . . . . . . . Recycling Unit Hacks . | . . . . . . . . . . Scanalyzer 10 | . . . . . . . 5 5 . Insert Component 6 | . . . . . . . 3 3 . Analyze 4 | . . . . . . . 2 2 . Garrison Access Hacks . | . . . . . . . . . . Unauthorized Hacks 7 | . 1 . 2 . . . 2 2 . Terminals 7 | . 1 . 2 . . . 2 2 . Assimilate 2 | . . . . . . . 1 1 . Botnet 5 | . 1 . 2 . . . 1 1 . Fabricators . | . . . . . . . . . . Repair Stations . | . . . . . . . . . . Recycling Units . | . . . . . . . . . . Scanalyzers . | . . . . . . . . . . Garrison Access . | . . . . . . . . . . Data Cores Recovered . | . . . . . . . . . . Used . | . . . . . . . . . . Hacking Detections 19 | . 2 . 3 . . . 3 11 . Full Trace Events 8 | . . . 1 . . . 1 6 . Feedback Events 1 | . . . . . . . . 1 . Corruption 1 | . . . . . . . . 1 . Feedback Blocked . | . . . . . . . . . . Robot Schematics Acquired . | . . . . . . . . . . Robots Built . | . . . . . . . . . . Authchips . | . . . . . . . . . . Time . | . . . . . . . . . . Total Robot Build Rating . | . . . . . . . . . . Part Schematics Acquired 6 | . 2 . . . . . 2 2 . Parts Built . | . . . . . . . . . . Authchips . | . . . . . . . . . . Time . | . . . . . . . . . . Total Part Build Rating . | . . . . . . . . . . Parts Repaired . | . . . . . . . . . . Time . | . . . . . . . . . . Parts Recycled . | . . . . . . . . . . Recycled Matter . | . . . . . . . . . . Retrieved Matter . | . . . . . . . . . . Retrieved Components . | . . . . . . . . . . Parts Scanalyzed 5 | . . . . . . . 3 2 . Part Schematics Acquired 4 | . . . . . . . 2 2 . Parts Damaged 2 | . . . . . . . . 2 . Bothacking | -11 -10 -10 -9 -9 -9 -8 -8 -7 -7 ------------ Run | Yrd Mat Min Mat Min Exi Min Mat Fac Low Used RIF Installer . | . . . . . . . . . . Robots Hacked . | . . . . . . . . . . Non-combat . | . . . . . . . . . . Combat . | . . . . . . . . . . Robot Hacks Applied . | . . . . . . . . . . Relay Couplers Released . | . . . . . . . . . . Fabnet Peak Effective % . | . . . . . . . . . . Robots Rewired . | . . . . . . . . . . Allies Hacked . | . . . . . . . . . . Hacks Repelled . | . . . . . . . . . . Allies | -11 -10 -10 -9 -9 -9 -8 -8 -7 -7 -------- Run | Yrd Mat Min Mat Min Exi Min Mat Fac Low Total Allies 4 | . . 3 . . . . 1 . . Largest Group 3 | . . 3 3 2 . . 1 1 . Highest-Rated Group 40 | . . 40 40 24 . . 10 10 . Highest-Rated Ally 16 | . . 16 16 16 . . 10 10 . Total Orders . | . . . . . . . . . . Ally Attacks 22 | . . 4 5 13 . . . . . Total Damage 199 | . . 35 56 108 . . . . . Kills 6 | . . 2 2 2 . . . . . Allies Corrupted . | . . . . . . . . . . Allies Melted . | . . . . . . . . . . Intel | -11 -10 -10 -9 -9 -9 -8 -8 -7 -7 ------- Run | Yrd Mat Min Mat Min Exi Min Mat Fac Low Robot Analysis Total . | . . . . . . . . . . Derelict Logs Recovered 3 | . . 1 . 1 . . . . 1 Drone Launches . | . . . . . . . . . . Drone Recoveries . | . . . . . . . . . . Exploration | -11 -10 -10 -9 -9 -9 -8 -8 -7 -7 ------------- Run | Yrd Mat Min Mat Min Exi Min Mat Fac Low Turns Passed 4281 | 56 237 31 56 181 90 81 166 2047 1336 Spaces Moved 3780 | 44 156 46 132 491 217 138 168 1738 650 Core 391 | 5 . . . . . . . 19 367 Treads 853 | . . . . . . . . 570 283 Legs 178 | 39 139 . . . . . . . . Wheels . | . . . . . . . . . . Hover 10 | . . . . . . . . 10 . Flight 2348 | . 17 46 132 491 217 138 168 1139 . Fastest Speed 31 | 50 37 37 31 31 31 50 50 50 50 Average Speed 92 | 114 110 37 31 31 40 50 50 91 190 Slowest Speed 400 | 120 120 37 31 31 50 50 50 400 350 Overloaded Moves . | . . . . . . . . . . Propulsion Burnouts . | . . . . . . . . . . Robots Hopped 23 | . . 1 . 9 . . 1 12 . Cave-ins Triggered . | . . . . . . . . . . Exploration Rate (%) 38 | 3 34 15 18 91 58 30 20 39 75 Regions Visited 9 Branch Regions 5 Pre-discovered Areas 1 | . . . . 1 . . . . . Known Exits Taken 4 | . 1 . 1 . 1 . . 1 . Unknown Exits Taken 5 | 1 . 1 . 1 . 1 1 . . Scrap Searched 6 | . . . . 1 . . . . 5 Spaces Dug 7 | . . . . . . . . 7 . Terrain Destroyed 7 | . . . . . . . . 7 . Melee 7 | . . . . . . . . 7 . Projectile . | . . . . . . . . . . AOE . | . . . . . . . . . . Terrain Rammed . | . . . . . . . . . . Walls Destroyed . | . . . . . . . . . . Machines Disabled . | . . . . . . . . . . Actions | -11 -10 -10 -9 -9 -9 -8 -8 -7 -7 --------- Run | Yrd Mat Min Mat Min Exi Min Mat Fac Low Total 4274 | 47 193 58 146 499 221 141 234 2036 699 Wait 200 | . 3 14 . 2 . . 45 130 6 Move 3726 | 43 155 43 131 473 216 137 165 1713 650 Hop 22 | . . 1 . 8 . . 1 12 . Pick Up 28 | . 5 . 2 2 . . 4 14 1 Fast Attach 47 | 4 2 . 5 2 1 . 4 22 7 Attach 16 | . . . 3 . . . 1 10 2 Detach 14 | . . . 1 1 . . 1 10 1 Swap 10 | . . . . 1 . . 1 7 1 Drop 53 | . 2 . 4 4 4 . 5 31 3 Fire 97 | . 26 . . 6 . 4 7 44 10 Melee 59 | . . . . . . . . 42 17 Ram 1 | . . . . . . . . . 1 Kick . | . . . . . . . . . . Crush 1 | . . . . . . . . 1 . Escape Stasis . | . . . . . . . . . . Rewire . | . . . . . . . . . . Trap . | . . . . . . . . . . Miscellaneous . | . . . . . . . . . . Route ------- -11/Scrapyard -10/Materials -10/Mines -9/Materials -9/Mines (discovered 2 exits: *Mat / *Exi) -9/Exiles (discovered 2 exits: *Min x2) -8/Mines -8/Materials -7/Factory (discovered 4 exits: [*Fac x2] / *Low x2) -7/Lower Caves History --------- Turn | Location | Event 4 | -11/Scrapyard | Discovered new exit (range 16) 57 | -11/Scrapyard | Entered Materials 79 | -10/Materials | Identified exit to Mines 294 | -10/Materials | Entered Mines 299 | -10/Mines | Assisted by bots powering up and referring to "LRC-V3" 304 | -10/Mines | Discovered new exit (range 13) 308 | -10/Mines | Build established: Mutant 325 | -10/Mines | Entered Materials 325 | -9/Materials | Accompanied by 3 allies 325 | -9/Materials | Evolved 2 slots: Propulsion x2 326 | -9/Materials | Identified exit to Mines 381 | -9/Materials | Entered Mines 381 | -9/Mines | Accompanied by 2 allies 444 | -9/Mines | Discovered new exit (range 13) 444 | -9/Mines | Learned Materials terminal intel 445 | -9/Mines | Learned location of Storage (-8) 485 | -9/Mines | Found a hidden stash of uninstalled traps 543 | -9/Mines | Met a Derelict who couldn't figure out how to use a Trap Extractor 561 | -9/Mines | Deemed a non-threat by the Exiles lab entrance 561 | -9/Mines | Discovered new exit (range 5) 562 | -9/Mines | Entered Exiles 563 | -9/Exiles | Identified exit to Mines 570 | -9/Exiles | Met 8R-AWN 575 | -9/Exiles | Met EX-HEX 585 | -9/Exiles | Met EX-BIN 589 | -9/Exiles | Aligned with FarCom system 589 | -9/Exiles | Given EX-Vault access code 596 | -9/Exiles | Opened EX-Vault 600 | -9/Exiles | Found Prototype Flight Unit 600 | -9/Exiles | Identified Flying Fortress v7 611 | -9/Exiles | Warned to stay clear of 0b10 Research branches 647 | -9/Exiles | Discovered exit to Mines (range 12) 652 | -9/Exiles | Left Exiles lab with Flying Fortress v7 652 | -9/Exiles | Entered Mines 731 | -8/Mines | Discovered new exit (range 5) 733 | -8/Mines | Entered Materials 733 | -8/Materials | Evolved 2 slots: Utility x2 734 | -8/Materials | Loaded intel: 12 terminal locations 893 | -8/Materials | Discovered new exit (range 7) 899 | -8/Materials | Entered Factory 899 | -7/Factory | Accompanied by 1 ally 899 | -7/Factory | Evolved 2 slots: Utility x2 1208 | -7/Factory | Build established: Infiltrator-Scout 1263 | -7/Factory | Discovered new exit (range 7) 1346 | -7/Factory | Discovered new exit (range 13) 1574 | -7/Factory | Discovered new exit (range 8) 2735 | -7/Factory | Build established: Assassin 2829 | -7/Factory | Identified exit to Lower Caves 2946 | -7/Factory | Entered Lower Caves 3094 | -7/Lower Caves | Encountered a Warlord checkpoint 3116 | -7/Lower Caves | Learned Factory garrison access intel 3248 | -7/Lower Caves | Build established: Mutant 3438 | -7/Lower Caves | Core integrity fell below 50% 3512 | -7/Lower Caves | Lost 5 parts (3n1u1w) 4158 | -7/Lower Caves | Attracted the attention of an 0b10 checkpoint 4205 | -7/Lower Caves | Core integrity fell below 20% 4232 | -7/Lower Caves | Lost 7 parts (1p4u2w) 4280 | -7/Lower Caves | Attracted the attention of an 0b10 outpost 4282 | -7/Lower Caves | Destroyed by Y-64 Sentinel with KE Penetrator Last Messages --------------- 04228_ Acquired Unknown Leg. 04228_ Identified Imp. Titanium Leg. 04230_ Acquired 20 matter. 04231_ Acquired Particle Cannon. 04240_ Searching scrap... 04240_ Found Adv. Weight Redist. System. 04240_ Found Imp. Salvage Targeting Computer. 04240_ Found Mak. Flight Unit. 04240_ Found Com. Wheel. 04240_ Found 18 Matter. 04241_ Acquired Imp. Salvage Targeting Computer. 04243_ Acquired Adv. Weight Redist. System. 04245_ Acquired Mak. Flight Unit. 04247_ Dropped Mak. Flight Unit. 04259_ Searching scrap... 04259_ Found Hcp. Matter Pod. 04259_ Found 31 Matter. 04272_ System corrupted: Energy discharge (-25). 04280_ Y-64 Sentinel: "DETECTED UNIDENTIFIED DERELICT." Map ----- +----------------------------------------------------+ | ?????????????????????????????????????????????????? | | ?????????????????????????????????????????????????? | | ?????????????????????????????????????????????????? | | ?????????????????????????????????????????????????? | | ?????????????????????????????????????????????????? | | ?????????????????????????????????????????????????? | | ?????????????????????????????????????????????????? | | ?????????????????????????????????????????????????? | | ?????????????????????????????????????????????????? | | ?????????????????????????????????????????????????? | | ?????????????????????????????????????????????????? | | ?????????????????????????????????????????????????? | | ?????????????????????????????????????????????????? | | ??????????????????????####???????????????????????? | | ?????????????????????## ##??????????????????????? | | ?????????????????????# ##?????????????????????? | | ?????????????????????### ##??????####??????????? | | ???????????????????????## ####?## #??????????? | | ??????????#####?????????# ## ### #??????????? | | ??????##### ##????????# #???????????? | | ??????#"""## ##???????## ####???????????? | | ??????#""" #??####### l s ##??????????????? | | ??????#""" #### ## g s ###???????????????? | | ??????#""" g ###?????????????????? | | ??????#"""## !% g #???????????????????? | | ??????###??## #### ##@ Y ##??????#??????????? | | ????????????# ### ## ###??????? | | ????????????# # ## ##????? | | ????????????# ## ## ## #???? | | ????????????## ### ###### #?? # #??#? | | ?????????????# ###?####????## #??? # #?### | | ?????????????# #??????????### #????### ### % ? | | ???????????### #??????????# +??????# %#?? | | ??????????## #######?#### # ?????# ### | | ??????????# % % #?# # #"?????# #? | | ??????????# ##### #?# #### ######## #? | | ?????????## #???# #?# #??# #?? | | ?????????# #???# ### #??########### ### | | ?????????### ##?## ## #????????????## | | ???????????## #?# #???????????#?## | | ???????????# #?# ##??????????????# | | ???????????# ###?# #???????????????# # | | ???????????# #???# ##???????????#?###% # | | ???????????# #???# ##???????????### % | | ???????????# #???# ##?????????## %### | | ???????????# #???# ## #???# [[###### | | ???????????# ##### ??????# ###???## | | ???????????# =% ### ??? ??#??# ##??????# | | ???????????# = #??# ????????###???#????## | | ???????????###########???# ???????????#????#?#?## | +----------------------------------------------------+ Best States ------------- Heat Dissipation 48 Energy Generation 14 Energy Capacity 280 Matter Stores 300 Matter Capacity 300 Sight Range 20 Terrain Scan Range 16 Terrain Scan Density 10 ECM Strength 4 Jamming Range 12 Evasion (%) 63 Targeting Accuracy 8 Recoil Reduction 4 Salvage Targeting 2 Defensive Hacking 11 Item Schematics ----------------- Med. Laser | -10/Materials | Hacked ECM Suite | -10/Materials | Hacked Xenon Bombardment Thruster | -8/Materials | Scanalyzed Adv. ECM Suite | -8/Materials | Scanalyzed Power Maul | -7/Factory | Scanalyzed Great Axe | -7/Factory | Scanalyzed Robot Schematics ------------------ None Fabricated ------------ Nothing Alien Tech Used ----------------- None Achievements -------------- None Challenges ------------ None Game ------ Seed MobileCooledReactor Manual? 0 Play Time 00:53:50 Cumulative 30.9 hours Start 2024.04.08 @ 21:09:34 End 2024.04.08 @ 22:19:57 Sessions 1 Manual Loads 0 Difficulty Rogue Special Mode None Game No. 43 Rogue 43 Adventurer 0 Explorer 0 Win Type - Total 0 Types 0/0/0/0/0/0/0/0/0 Lore% 13 Gallery% 32 Achievement% 24 Wizard Run 0 Options --------- Layout 1 ASCII 0 Keyboard 0 Movement Numpad Keybinds 0 Fullscreen 1 Font 24/Crisp Map View 50x35 Zoom Use 0% Tactical HUD 1 Map Filters NONE Filters NONE Steam 1 RUN: 6acf489c-00df-4a57-90d8-920df1655a66